bitfinex-derivatives/quotes_SOLF0:USTF0_20250130
["timestamp","ask_amount","ask_price","bid_price","bid_amount"]
[1738230596101,4.1651,240.1,240.06,4.19719181]
[1738230599306,0.0274728,240.11,240.1,4.1651]
[1738230600006,7.18216154,240.18,240.13,4.1645]
[1738230600408,7.18216154,240.18,240.11,7.18216154]
[1738230600409,4.1641,240.16,240.11,7.18216154]
[1738230600607,7.18216154,240.16,240.09,7.18216154]
[1738230600804,7.18216154,240.14,240.07,11.44086154]
[1738230601110,4.1649,240.12,240.08,0.03046718]
[1738230601601,4.19494102,240.13,240.08,4.19576718]
[1738230601807,0.03024102,240.13,240.08,4.19576718]
[1738230602007,7.18216154,240.12,240.08,0.03046718]
[1738230603109,11.34706154,240.12,240.08,0.03046718]
[1738230605708,4.19484102,240.13,240.08,0.03046718]
[1738230606209,0.03024102,240.13,240.09,7.18216154]
[1738230606406,0.03024102,240.13,240.09,11.34726154]
[1738230606708,0.03024102,240.13,240.08,0.03046718]
[1738230606709,0.03024102,240.13,240.11,7.18216154]
[1738230607003,4.1635,240.2,240.15,4.164]
[1738230607809,4.1636,240.19,240.14,4.1644]
[1738230608208,4.19234914,240.19,240.14,4.1952496]
[1738230608608,0.02874914,240.19,240.14,0.0308496]
[1738230608810,0.02874914,240.19,240.15,4.1642]
[1738230610411,0.02874914,240.19,240.16,4.164]
[1738230611711,0.02874914,240.19,240.14,0.0308496]
[1738230611909,0.02874914,240.19,240.15,4.1642]
[1738230612211,0.02874914,240.19,240.14,0.0308496]
[1738230613317,0.02874914,240.19,240.17,7.18216154]
[1738230614108,0.02874914,240.19,240.18,4.1637]
[1738230614415,4.1625,240.25,240.17,7.18216154]
[1738230614612,4.1625,240.25,240.19,7.18216154]
[1738230615113,4.1625,240.25,240.21,4.1632]
[1738230615308,7.18216154,240.26,240.19,7.18216154]
[1738230615613,0.02634917,240.25,240.21,7.21326161]
[1738230615811,0.02634917,240.25,240.23,4.1627]
[1738230616512,0.02634917,240.25,240.24,4.1626]
[1738230621220,0.02634917,240.25,240.21,4.18999821]
[1738230621419,7.18216154,240.24,240.21,0.02689821]
[1738230622415,7.18216154,240.24,240.21,4.19009821]
[1738230623516,0.02634917,240.25,240.22,4.163]
[1738230626523,0.02634917,240.25,240.21,4.18999821]
[1738230626921,0.02634917,240.25,240.21,0.02689821]
[1738230627119,0.02634917,240.25,240.23,4.1627]
[1738230628118,0.02634917,240.25,240.21,7.20905975]
[1738230628322,0.02634917,240.25,240.24,4.1626]
[1738230629319,0.02634917,240.25,240.23,4.1628]
[1738230630220,0.02634917,240.25,240.22,1.3901]
[1738230630421,7.18216154,240.24,240.21,0.02689821]
[1738230631826,7.18216154,240.24,240.21,4.18999821]
[1738230632322,0.02634917,240.25,240.21,4.18999821]
[1738230634926,0.02634917,240.25,240.21,0.02689821]
[1738230635122,4.1627,240.24,240.21,0.02689821]
[1738230635826,4.1629,240.23,240.21,0.02689821]
[1738230636528,4.163,240.22,240.21,0.02689821]
[1738230637027,7.18216154,240.24,240.21,0.02689821]
[1738230637427,11.34496154,240.24,240.21,0.02689821]
[1738230637725,7.18216154,240.24,240.21,0.02689821]
[1738230637926,0.02634917,240.25,240.21,0.02689821]
[1738230639226,0.02634917,240.25,240.21,7.20905975]
[1738230639426,0.02634917,240.25,240.23,7.18216154]
[1738230639827,12.4734,240.53,240.23,7.18216154]
[1738230639828,7.18216154,240.34,240.23,7.18216154]
[1738230640125,7.18216154,240.34,240.26,7.18216154]
[1738230640523,7.18216154,240.32,240.24,7.18216154]
[1738230640722,7.18216154,240.3,240.23,1.3947]
[1738230641021,7.18216154,240.26,240.24,0.03131115]
[1738230641217,7.18216154,240.26,240.18,7.18216154]
[1738230641419,0.02890337,240.24,240.2,0.02737059]
[1738230643129,11.37376491,240.24,240.2,0.02737059]
[1738230643523,7.21106491,240.24,240.2,0.02737059]
[1738230643729,7.21106491,240.24,240.2,4.19067059]
[1738230644524,7.21106491,240.24,240.2,0.02737059]
[1738230646225,4.163,240.22,240.2,0.02737059]
[1738230646921,7.21106491,240.24,240.2,0.02737059]
[1738230647124,4.1629,240.23,240.2,0.02737059]
[1738230648030,7.21106491,240.24,240.2,0.02737059]
[1738230648330,0.02890337,240.24,240.2,4.19067059]
[1738230649626,0.02890337,240.24,240.2,0.02737059]
[1738230649830,7.21106491,240.24,240.2,0.02737059]
[1738230650131,4.163,240.22,240.2,0.02737059]
[1738230651328,11.37386491,240.24,240.2,0.02737059]
[1738230653627,11.37386491,240.24,240.2,7.20953213]
[1738230653628,0.02890337,240.24,240.2,7.20953213]
[1738230653932,0.02890337,240.24,240.23,7.18216154]
[1738230655031,0.02890337,240.24,240.23,11.34496154]
[1738230657331,7.18216154,240.34,240.28,4.1618]
[1738230657936,4.1608,240.35,240.3,4.1616]
[1738230658429,7.18216154,240.34,240.3,0.02780762]
[1738230659936,4.1611,240.33,240.3,0.02780762]
[1738230660236,7.18216154,240.32,240.3,0.02780762]
[1738230660733,4.1614,240.31,240.3,0.02780762]
[1738230661739,7.18216154,240.34,240.3,0.02780762]
[1738230662036,0.03153425,240.35,240.3,0.02780762]
[1738230662229,7.18216154,240.34,240.3,0.02780762]
[1738230662429,7.18216154,240.31,240.3,0.02780762]
[1738230663034,11.34356154,240.31,240.3,0.02780762]
[1738230667037,0.03153425,240.35,240.3,0.02780762]
[1738230667038,7.18216154,240.33,240.3,0.02780762]
[1738230667342,7.21369579,240.35,240.3,0.02780762]
[1738230667537,7.21369579,240.35,240.3,4.18930762]
[1738230667739,7.21369579,240.35,240.3,0.02780762]
[1738230667940,0.03153425,240.35,240.3,0.02780762]
[1738230668142,0.03153425,240.35,240.32,4.1613]
[1738230668742,0.03153425,240.35,240.3,0.02780762]
[1738230668946,0.03153425,240.35,240.32,4.1611]
[1738230669644,0.03153425,240.35,240.3,0.02780762]
[1738230670247,0.03153425,240.35,240.31,4.1614]
[1738230670446,0.03153425,240.35,240.3,0.02780762]
[1738230670447,7.18216154,240.33,240.3,0.02780762]
[1738230670638,7.18216154,240.31,240.3,0.02780762]
[1738230671044,11.34356154,240.31,240.3,0.02780762]
[1738230681860,7.18216154,240.33,240.3,0.02780762]
[1738230682060,11.34326154,240.33,240.3,0.02780762]
[1738230682460,7.18216154,240.33,240.3,0.02780762]
[1738230684063,4.1614,240.32,240.3,0.02780762]
[1738230684963,11.34326154,240.33,240.3,0.02780762]
[1738230685763,11.34326154,240.33,240.3,4.18930762]
[1738230686965,7.18216154,240.33,240.3,4.18930762]
[1738230687571,7.18216154,240.33,240.3,0.02780762]
[1738230687766,4.1609,240.34,240.31,4.1613]
[1738230691265,11.37449579,240.35,240.31,4.1613]
[1738230691469,7.21369579,240.35,240.33,4.1609]
[1738230691869,0.03153425,240.35,240.3,0.02780762]
[1738230692169,0.03153425,240.35,240.34,4.1609]
[1738230694269,0.03153425,240.35,240.31,7.18216154]
[1738230694270,7.18216154,240.39,240.31,7.18216154]
[1738230694463,7.18216154,240.39,240.35,4.1607]
[1738230695469,7.20917359,240.39,240.35,4.1607]
[1738230696476,11.36927359,240.39,240.35,4.1607]
[1738230697670,7.20917359,240.39,240.35,4.1607]
[1738230697975,7.20917359,240.39,240.36,4.1606]
[1738230698172,0.02701205,240.39,240.33,7.18216154]
[1738230698371,0.02701205,240.39,240.35,7.20842158]
[1738230699279,7.18216154,240.45,240.37,7.18216154]
[1738230699478,7.18216154,240.47,240.39,7.18216154]
[1738230700074,7.18216154,240.51,240.43,7.18216154]
[1738230700466,7.18216154,240.49,240.45,0.02666532]
[1738230700664,7.2115849,240.49,240.45,0.02666532]
[1738230700971,11.3698849,240.49,240.45,0.02666532]
[1738230701165,7.2115849,240.49,240.45,0.02666532]
[1738230702077,7.2115849,240.49,240.45,4.18566532]
[1738230702570,7.2115849,240.49,240.45,0.02666532]
[1738230703877,11.3698849,240.49,240.45,0.02666532]
[1738230704078,7.2115849,240.49,240.45,0.02666532]
[1738230704685,0.02942336,240.49,240.45,0.02666532]
[1738230706279,0.02942336,240.49,240.48,7.18216154]
[1738230707781,0.02942336,240.49,240.48,11.34066154]
[1738230707981,4.1573,240.56,240.48,7.18216154]
[1738230708184,4.1573,240.56,240.5,7.18216154]
[1738230709186,0.03176923,240.55,240.51,0.02649816]
[1738230709785,0.03176923,240.55,240.51,4.18439816]
[1738230711086,4.18906923,240.55,240.51,4.18439816]
[1738230712583,4.1578,240.52,240.51,0.02649816]
[1738230713290,4.1593,240.44,240.39,4.1599]
[1738230713581,7.18216154,240.46,240.38,7.18216154]
[1738230713787,11.34116154,240.46,240.41,4.1597]
[1738230714181,7.18216154,240.46,240.41,0.02983644]
[1738230714389,7.21407121,240.46,240.41,0.02983644]
[1738230715086,0.03190967,240.46,240.42,4.1595]
[1738230716991,4.19080967,240.46,240.41,0.02983644]
[1738230717288,7.18216154,240.44,240.41,0.02983644]
[1738230718189,4.1594,240.43,240.41,0.02983644]
[1738230719399,7.21407121,240.46,240.41,0.02983644]
[1738230719794,7.21407121,240.46,240.41,4.18953644]
[1738230719996,0.03190967,240.46,240.41,0.02983644]
[1738230720494,0.03190967,240.46,240.42,4.1595]
[1738230721791,0.03190967,240.46,240.41,0.02983644]
[1738230723897,0.03190967,240.46,240.42,7.18216154]
[1738230724198,0.03190967,240.46,240.43,4.1593]
[1738230727200,11.34166154,240.42,240.41,0.02983644]
[1738230731604,7.18216154,240.42,240.32,4.1611]
[1738230731804,4.1607,240.36,240.32,4.1611]
[1738230732803,4.19063628,240.36,240.32,4.19172911]
[1738230733202,4.1611,240.33,240.32,0.03062911]
[1738230738608,7.18216154,240.34,240.19,8.51236154]
[1738230738808,7.18216154,240.28,240.21,7.18216154]
[1738230739610,4.1625,240.26,240.21,11.34516154]
[1738230739810,0.03161561,240.27,240.22,0.02881322]
[1738230740212,4.1626,240.25,240.22,4.19181322]
[1738230741011,0.03161561,240.27,240.22,0.02881322]
[1738230741212,0.03161561,240.27,240.23,7.18216154]
[1738230741413,0.03161561,240.27,240.25,7.18216154]
[1738230741707,3.4194,240.38,240.25,7.18216154]
[1738230741708,7.18216154,240.34,240.25,7.18216154]
[1738230741903,7.18216154,240.34,240.27,7.18216154]
[1738230742306,7.18216154,240.34,240.28,4.1619]
[1738230742711,4.1613,240.32,240.28,4.1619]
[1738230742912,4.1613,240.32,240.29,0.02985726]
[1738230743608,4.1613,240.32,240.29,4.19165726]
[1738230745112,4.1613,240.32,240.29,0.02985726]
[1738230745616,0.03116498,240.33,240.31,7.18216154]
[1738230746312,0.03116498,240.33,240.32,4.1613]
[1738230746809,7.18216154,240.4,240.31,7.18216154]
[1738230747013,7.18216154,240.4,240.35,4.1607]
[1738230747406,4.1601,240.39,240.35,4.1607]
[1738230747712,7.18216154,240.4,240.37,4.1604]
[1738230747914,11.34206154,240.4,240.33,7.18216154]
[1738230748103,7.18216154,240.4,240.36,0.02878806]
[1738230748710,7.18216154,240.38,240.36,0.02878806]
[1738230749215,4.1604,240.37,240.36,0.02878806]
[1738230751312,4.1602,240.38,240.36,0.02878806]
[1738230751917,7.18216154,240.4,240.36,0.02878806]
[1738230752117,4.18914375,240.41,240.37,4.1603]
[1738230753717,0.02944375,240.41,240.36,0.02878806]
[1738230753914,0.02944375,240.41,240.38,4.1601]
[1738230754216,0.02944375,240.41,240.37,7.18216154]
[1738230755320,0.02944375,240.41,240.37,10.05666154]
[1738230755521,0.02944375,240.41,240.4,4.1599]
[1738230758422,4.1589,240.46,240.42,4.1595]
[1738230758617,7.18216154,240.48,240.41,7.18216154]
[1738230758618,11.34086154,240.48,240.41,7.18216154]
[1738230759619,0.03181104,240.47,240.42,0.03180612]
[1738230759924,0.03181104,240.47,240.43,4.1592]
[1738230762018,0.03181104,240.47,240.44,4.1592]
[1738230763030,4.1591,240.45,240.42,0.03180612]
[1738230763218,7.18216154,240.46,240.42,0.03180612]
[1738230763527,4.1594,240.43,240.42,0.03180612]
[1738230768632,4.1605,240.37,240.32,1.3456]
[1738230768929,4.1605,240.37,240.34,4.1609]
[1738230769729,0.03149701,240.38,240.37,4.1604]
[1738230769930,7.18216154,240.44,240.37,7.18216154]
[1738230770224,7.18216154,240.48,240.41,7.18216154]
[1738230770524,7.18216154,240.5,240.45,7.18216154]
[1738230770926,4.1585,240.48,240.45,7.18216154]
[1738230771125,4.1585,240.48,240.45,7.2094609]
[1738230771325,0.02761908,240.5,240.47,11.34076154]
[1738230771528,0.02761908,240.5,240.49,7.18216154]
[1738230773229,0.02761908,240.5,240.47,11.34076154]
[1738230774030,0.02761908,240.5,240.49,11.34046154]
[1738230775232,4.1575,240.54,240.49,11.34046154]
[1738230775530,11.00316457,240.56,240.51,7.18216154]
[1738230776332,11.0327854,240.56,240.51,7.21104837]
[1738230776835,15.1899854,240.56,240.52,4.1577]
[1738230777027,11.0327854,240.56,240.52,4.1577]
[1738230777734,11.0327854,240.56,240.53,4.1576]
[1738230778933,15.1898854,240.56,240.51,7.21104837]
[1738230779126,15.1898854,240.56,240.51,11.36884837]
[1738230779735,7.18216154,240.54,240.51,0.02888683]
[1738230781133,4.1578,240.53,240.51,0.02888683]
[1738230781433,7.18216154,240.54,240.51,0.02888683]
[1738230781935,4.1578,240.52,240.51,0.02888683]
[1738230783632,11.33996154,240.52,240.51,0.02888683]
[1738230789129,4.1578,240.52,240.51,0.02888683]
[1738230789337,18.21494694,240.56,240.51,7.21104837]
[1738230790233,4.1575,240.54,240.51,11.36904837]
[1738230791528,4.1575,240.54,240.51,7.21104837]
[1738230791836,4.1575,240.54,240.51,0.02888683]
[1738230794338,4.1575,240.54,240.51,4.18688683]
[1738230794731,0.02962083,240.56,240.53,7.18216154]
[1738230794934,0.02962083,240.56,240.55,7.18216154]
[1738230795438,0.02962083,240.56,240.55,4.1573]
[1738230795736,0.02962083,240.56,240.55,11.33946154]
[1738230799735,7.18216154,240.64,240.57,4.1568]
[1738230799936,7.18216154,240.66,240.57,7.18216154]
[1738230800731,4.1558,240.64,240.59,11.33866154]
[1738230800935,0.0309861,240.64,240.61,7.18216154]
[1738230801341,0.0309861,240.64,240.62,4.1561]
[1738230801839,0.0309861,240.64,240.61,7.18216154]
[1738230802043,0.0309861,240.64,240.63,11.33806154]
[1738230803237,4.1542,240.73,240.66,4.1553]
[1738230803541,7.18216154,240.74,240.68,7.18216154]
[1738230803741,4.1544,240.72,240.68,7.18216154]
[1738230803941,7.18216154,240.74,240.68,7.18216154]
[1738230804238,0.795,240.87,240.73,7.18216154]
[1738230804442,4.1534,240.78,240.73,7.18216154]
[1738230804643,4.1534,240.78,240.75,7.18216154]
[1738230804845,4.1534,240.78,240.73,7.18216154]
[1738230805048,7.18216154,240.77,240.73,0.02955625]
[1738230805744,4.154,240.74,240.73,0.02955625]
[1738230807538,7.18216154,240.75,240.63,7.18216154]
[1738230807742,4.155,240.69,240.63,7.18216154]
[1738230808140,4.155,240.69,240.65,7.18216154]
[1738230808545,7.18216154,240.72,240.65,7.18216154]
[1738230808847,4.1551,240.68,240.65,0.03165644]
[1738230809245,4.1551,240.68,240.63,7.18216154]
[1738230809445,4.1551,240.68,240.64,0.03043655]
[1738230809746,4.1552,240.67,240.64,0.03043655]
[1738230812456,4.1551,240.68,240.65,7.18216154]
[1738230813754,4.1552,240.67,240.65,7.18216154]
[1738230813955,0.03162667,240.69,240.65,7.18216154]
[1738230814354,4.1551,240.68,240.65,7.18216154]
[1738230816259,4.1553,240.67,240.64,0.03043655]
[1738230818162,4.1551,240.68,240.65,7.18216154]
[1738230821164,4.1552,240.67,240.65,7.18216154]
[1738230821958,4.1554,240.66,240.65,7.18216154]
[1738230822159,0.03162667,240.69,240.65,7.18216154]
[1738230823366,4.1552,240.68,240.65,7.18216154]
[1738230826869,0.03162667,240.69,240.65,7.18216154]
[1738230827170,7.18216154,240.8,240.67,7.18216154]
[1738230827362,7.18216154,240.8,240.74,7.18216154]
[1738230828170,4.1541,240.74,240.72,7.18216154]
[1738230828572,4.1544,240.72,240.71,0.02768159]
[1738230828773,7.18216154,240.74,240.68,7.18216154]
[1738230828967,7.18216154,240.74,240.69,0.02856851]
[1738230829771,4.1547,240.7,240.69,0.02856851]
[1738230830070,7.18216154,240.74,240.69,0.02856851]
[1738230830270,7.18216154,240.76,240.69,0.02856851]
[1738230830470,7.18216154,240.76,240.68,11.33716154]
[1738230830662,7.18216154,240.76,240.7,0.02778745]
[1738230831070,4.1545,240.71,240.7,0.02778745]
[1738230834380,7.18216154,240.76,240.7,11.36454899]
[1738230835274,7.18216154,240.78,240.72,11.33646154]
[1738230835768,7.18216154,240.78,240.73,0.03103387]
[1738230836469,7.18216154,240.8,240.74,7.18216154]
[1738230836775,4.1536,240.77,240.74,7.18216154]
[1738230836975,7.18216154,240.8,240.75,4.1538]
[1738230838174,7.18216154,240.8,240.74,7.18216154]
[1738230838374,7.18216154,240.82,240.76,7.18216154]
[1738230838973,4.1529,240.81,240.77,0.03127702]
[1738230839178,7.18216154,240.82,240.77,0.03127702]
[1738230839570,4.1531,240.8,240.77,0.03127702]
[1738230840477,4.1533,240.79,240.77,0.03127702]
[1738230840773,7.18216154,240.8,240.77,0.03127702]
[1738230841073,7.18216154,240.78,240.77,0.03127702]
[1738230841772,11.33546154,240.78,240.77,0.03127702]
[1738230843972,7.18216154,240.78,240.68,4.1549]
[1738230844179,7.18216154,240.72,240.66,7.18216154]
[1738230844671,4.1547,240.71,240.68,4.155]
[1738230845875,4.1547,240.71,240.67,0.02720573]
[1738230846177,7.20903865,240.72,240.67,4.18240573]
[1738230846473,4.155,240.69,240.67,0.02720573]
[1738230846878,4.155,240.68,240.67,0.02720573]
[1738230847080,7.20903865,240.72,240.67,0.02720573]
[1738230848081,4.1547,240.7,240.67,0.02720573]
[1738230850083,4.1547,240.7,240.68,7.18216154]
[1738230854083,4.1547,240.7,240.67,4.18240573]
[1738230854084,4.155,240.68,240.67,0.02720573]
[1738230856487,4.1549,240.7,240.67,0.02720573]
[1738230856784,7.20903865,240.72,240.67,0.02720573]
[1738230857683,4.1548,240.7,240.67,0.02720573]
[1738230857888,4.1548,240.7,240.67,4.18240573]
[1738230859682,4.1549,240.69,240.67,4.18240573]
[1738230863289,7.20903865,240.72,240.67,0.02720573]
[1738230863485,11.33716154,240.68,240.67,0.02720573]
[1738230863887,4.155,240.68,240.67,0.02720573]
[1738230866189,7.20903865,240.72,240.67,0.02720573]
[1738230867285,4.1549,240.69,240.67,0.02720573]
[1738230870392,4.18137711,240.72,240.68,11.33706154]
[1738230870586,0.02687711,240.72,240.68,11.33706154]
[1738230870985,4.1547,240.71,240.68,7.18216154]
[1738230871797,7.18216154,240.71,240.67,0.02720573]
[1738230872095,4.155,240.68,240.67,0.02720573]
[1738230876996,4.1548,240.7,240.67,0.02720573]
[1738230877598,4.1549,240.69,240.67,0.02720573]
[1738230879897,4.155,240.68,240.67,0.02720573]
[1738230894221,4.1547,240.7,240.67,0.02720573]
[1738230894422,0.02687711,240.72,240.67,4.18230573]
[1738230894922,4.1547,240.7,240.67,4.18230573]
[1738230896022,4.1547,240.7,240.67,0.02720573]
[1738230898118,4.1549,240.69,240.67,0.02720573]
[1738230901626,7.18216154,240.71,240.67,0.02720573]
[1738230901921,0.02687711,240.72,240.67,0.02720573]
[1738230902630,4.1548,240.7,240.67,4.18230573]
[1738230902826,7.18216154,240.71,240.67,0.02720573]
[1738230903021,7.18216154,240.69,240.67,0.02720573]
[1738230904229,4.155,240.68,240.67,0.02720573]
[1738230909935,7.18216154,240.69,240.67,0.02720573]
[1738230910135,4.1549,240.7,240.67,0.02720573]
[1738230910536,4.1549,240.7,240.67,4.18240573]
[1738230912034,4.155,240.69,240.67,0.02720573]
[1738230912235,0.02687711,240.72,240.68,7.18216154]
[1738230912436,0.02687711,240.72,240.71,7.18216154]
[1738230912843,0.02687711,240.72,240.71,11.33666154]
[1738230913039,0.02687711,240.72,240.71,4.1545]
[1738230913239,0.02687711,240.72,240.7,4.1547]
[1738230913440,0.02687711,240.72,240.67,0.02720573]
[1738230913636,7.20903865,240.72,240.67,0.02720573]
[1738230914232,4.1545,240.71,240.68,4.155]
[1738230914637,7.20903865,240.72,240.68,4.155]
[1738230914835,11.36343865,240.72,240.68,4.155]
[1738230915737,0.02687711,240.72,240.69,4.1548]
[1738230917739,0.02687711,240.72,240.71,11.33666154]
[1738230919839,7.18216154,240.82,240.76,4.1536]
[1738230921139,4.153,240.8,240.77,0.02856368]
[1738230921537,0.02387073,240.81,240.8,4.153]
[1738230922244,0.02387073,240.81,240.8,11.33516154]
[1738230922742,0.02387073,240.81,240.77,0.02856368]
[1738230922944,7.18216154,240.8,240.77,0.02856368]
[1738230924142,4.153,240.8,240.77,0.02856368]
[1738230924339,0.02387073,240.81,240.77,0.02856368]
[1738230924649,0.02387073,240.81,240.79,4.1531]
[1738230924941,0.02387073,240.81,240.78,7.18216154]
[1738230925437,0.02387073,240.81,240.77,0.02856368]
[1738230925645,0.02387073,240.81,240.78,4.1532]
[1738230925842,4.153,240.8,240.77,0.02856368]
[1738230926541,0.02387073,240.81,240.77,0.02856368]
[1738230926745,4.1531,240.79,240.77,0.02856368]
[1738230926948,0.02387073,240.81,240.77,0.02856368]
[1738230927247,4.153,240.8,240.77,0.02856368]
[1738230927843,11.33286154,240.93,240.78,7.18216154]
[1738230928041,11.33286154,240.93,240.85,7.18216154]
[1738230928441,7.18216154,240.91,240.85,11.33416154]
[1738230928746,7.18216154,240.91,240.85,7.18216154]
[1738230928948,7.18216154,240.91,240.86,0.03183674]
[1738230929448,7.18216154,240.91,240.86,4.18373674]
[1738230929742,7.18216154,240.95,240.89,7.18216154]
[1738230929948,7.18216154,240.97,240.91,7.18216154]
[1738230930349,4.1503,240.96,240.9,0.02942906]
[1738230930551,7.18216154,240.95,240.9,0.02942906]
[1738230930951,7.18216154,240.95,240.9,0.02941203]
[1738230932248,4.1508,240.93,240.9,0.02941203]
[1738230933055,4.1509,240.92,240.9,0.02941203]
[1738230934357,4.1511,240.91,240.9,0.02941203]
[1738230934954,7.18216154,240.95,240.9,0.02941203]
[1738230935855,4.15,240.98,240.93,4.1507]
[1738230936056,4.15,240.98,240.94,7.18216154]
[1738230936355,4.1496,241.0,240.95,4.1504]
[1738230936556,7.18216154,240.99,240.93,0.02953837]
[1738230936856,7.18216154,240.99,240.92,7.18216154]
[1738230937054,4.1501,240.97,240.94,0.03136607]
[1738230937254,7.18216154,240.99,240.94,0.03136607]
[1738230938150,4.1502,240.96,240.94,0.03136607]
[1738230938351,7.18216154,240.99,240.94,0.03136607]
[1738230939356,7.18216154,241.0,240.94,0.03136607]
[1738230939856,4.1502,240.97,240.94,0.03136607]
[1738230940058,7.18216154,241.0,240.94,0.03136607]
[1738230940257,4.15,240.98,240.94,0.03136607]
[1738230940457,4.15,240.98,240.95,7.18216154]
[1738230941859,4.1497,241.0,240.95,7.18216154]
[1738230942362,7.18216154,241.02,240.95,7.18216154]
[1738230943060,4.1498,240.99,240.95,7.18216154]
[1738230943259,7.18216154,241.06,240.97,7.18216154]
[1738230943455,10.85276154,241.08,241.01,7.18216154]
[1738230943660,4.1492,241.02,241.01,7.18216154]
[1738230943964,4.1492,241.02,240.99,7.20968661]
[1738230944759,4.1489,241.04,240.99,11.35928661]
[1738230944951,7.18216154,241.06,240.99,11.35928661]
[1738230945357,4.1489,241.04,241.01,7.18216154]
[1738230946161,9.39886154,241.08,241.01,7.18216154]
[1738230946762,4.1492,241.02,241.01,7.18216154]
[1738230947864,4.1495,241.0,240.99,7.20968661]
[1738230948869,4.1494,241.01,240.99,7.20968661]
[1738230951572,7.18216154,241.06,240.99,7.20968661]
[1738230951871,4.1495,241.0,240.99,7.20968661]
[1738230952368,7.18216154,241.0,240.92,7.18216154]
[1738230952667,7.18216154,240.98,240.9,11.33336154]
[1738230952871,7.18216154,240.98,240.9,7.18216154]
[1738230953174,4.1509,240.93,240.9,7.18216154]
[1738230953564,0.02709968,240.94,240.9,7.18216154]
[1738230953768,7.18216154,241.0,240.92,7.18216154]
[1738230953963,7.18216154,241.0,240.94,7.18216154]
[1738230954176,0.02752507,240.98,240.92,7.18216154]
[1738230954473,0.02752507,240.98,240.92,11.33306154]
[1738230954671,0.02752507,240.98,240.92,7.18216154]
[1738230954972,4.1504,240.95,240.92,7.18216154]
[1738230955673,4.1507,240.93,240.9,7.21133962]
[1738230956274,4.1506,240.94,240.9,7.21133962]
[1738230956571,4.1506,240.94,240.92,7.18216154]
[1738230958576,4.1503,240.96,240.92,7.18216154]
[1738230959171,0.02752507,240.98,240.92,7.18216154]
[1738230959372,0.02752507,240.98,240.96,7.18216154]
[1738230960278,0.02752507,240.98,240.96,11.33236154]
[1738230960669,0.02752507,240.98,240.96,7.18216154]
[1738230961575,37.5206866,241.06,240.96,7.18216154]
[1738230961576,30.33852506,241.06,240.96,7.18216154]
[1738230961879,30.33852506,241.06,241.0,7.18216154]
[1738230962180,4.1488,241.04,241.0,7.18216154]
[1738230962678,4.1488,241.04,241.0,7.21412825]
[1738230964983,4.1488,241.04,241.0,11.36362825]
[1738230967986,4.1487,241.05,241.04,0.02781811]
[1738230989106,4.1487,241.05,241.04,1.811e-05]
[1738230992106,4.1506,240.94,240.91,8.51476154]
[1738230993211,0.02781811,240.95,240.91,8.51476154]
[1738230993510,0.02781811,240.95,240.93,7.18216154]
[1738230994811,7.20997965,240.95,240.9,0.03023608]
[1738230995014,4.1511,240.91,240.9,0.03023608]
[1738231007927,7.18216154,240.94,240.9,0.03023608]
[1738231008225,0.02781811,240.95,240.91,7.18216154]
[1738231008429,0.02781811,240.95,240.93,7.18216154]
[1738231010127,0.02781811,240.95,240.91,11.33316154]
[1738231010331,4.17821811,240.95,240.91,7.18216154]
[1738231012227,4.17821811,240.95,240.9,1.40863608]
[1738231012228,4.1506,240.94,240.9,1.40863608]
[1738231012732,4.151,240.92,240.9,1.40863608]
[1738231015836,4.1507,240.94,240.9,5.55983608]
[1738231016134,0.02781811,240.95,240.91,7.18216154]
[1738231016639,0.02781811,240.95,240.91,11.33306154]
[1738231017038,0.02781811,240.95,240.92,4.1508]
[1738231017238,7.18216154,241.0,240.93,7.18216154]
[1738231017733,7.18216154,240.96,240.91,2.7094]
[1738231017939,7.18216154,240.94,240.9,1.3784]
[1738231018440,7.18216154,240.94,240.9,1.40573276]
[1738231018840,4.1508,240.93,240.9,1.40573276]
[1738231019139,7.18216154,240.94,240.9,0.02733276]
[1738231019335,4.1511,240.91,240.9,0.02733276]
[1738231020243,4.1509,240.92,240.9,0.02733276]
[1738231020937,9.635,241.04,240.9,0.02733276]
[1738231021134,7.18216154,240.98,240.9,7.2094943]
[1738231021542,4.1502,240.96,240.92,4.1509]
[1738231022246,4.1502,240.96,240.9,11.3605943]
[1738231022542,7.18216154,240.94,240.9,0.02733276]
[1738231022743,7.18216154,240.92,240.87,1.3809]
[1738231023043,4.1511,240.91,240.9,0.02632935]
[1738231035951,4.153,240.82,240.81,1.3387]
[1738231037351,4.1529,240.83,240.81,1.3387]
[1738231037747,0.02632935,240.84,240.81,1.3387]
[1738231038851,4.1529,240.83,240.81,1.3387]
[1738231041052,4.153,240.82,240.81,1.3387]
[1738231041351,7.18216154,240.83,240.79,0.02650396]
[1738231041552,7.18216154,240.81,240.79,0.02650396]
[1738231041746,4.1534,240.8,240.79,0.02650396]